Cogmind - Beta 16 @@@ ROGUE MODE // 2025.10.25 @ 14:48:15 Player: celerysam Result: Destroyed by U8-KAP(R) with Subdweller Machine Gun Performance ------------- Evolutions (0) 0 Regions Visited (2) 400 Robots Destroyed (22) 110 Value Destroyed (378) 378 Prototype IDs (1) 20 Alien Tech Used (0) 0 Bonus (0) 0 TOTAL SCORE: 908 Bonus ------- None Cogmind --------- Core Integrity 0/250 Matter 135/300 Energy 88/100 System Corruption 0% Temperature Cool (0) Movement Rolling (100) Location -10/Subcaves Parts ------- > --- POWER (1) -------- (None) > --- PROPULSION (2) --- Compact Wheel Compact Wheel > --- UTILITY (2) ------ Large Storage Unit Targeting Computer > --- WEAPON (2) ------- Improved Medium Laser EMP Blaster > --- INVENTORY (15) --- Ion Engine Improved Treads Improved Treads Improved Treads Wheel ECM Suite EM Shotgun Improved Medium Laser Improved Medium Laser Grenade Launcher Datajack Hammer Peak State ------------ > --- POWER ------------ Light Ion Engine > --- PROPULSION ------- Wheel Compact Wheel > --- UTILITY ---------- Large Storage Unit Targeting Computer > --- WEAPON ----------- EM Shotgun Improved Medium Laser > --- INVENTORY -------- Ion Engine Ion Engine Improved Treads Aluminum Leg Aluminum Leg Wheel Compact Wheel Compact Wheel ECM Suite EM Shotgun Improved Medium Laser Improved Medium Laser Grenade Launcher Datajack Hammer [Rating: 12] Favorites ----------- Power Light Ion Engine Engine Light Ion Engine Propulsion Aluminum Leg Leg Aluminum Leg Wheel Compact Wheel Utility Targeting Computer Storage Large Storage Unit Processor Targeting Computer Weapon Improved Medium Laser Energy Gun Improved Medium Laser Ballistic Gun Assault Rifle Launcher Grenade Launcher Impact Weapon Hammer Build | -11 -10 -10 ------- Run | Yrd Mat Sub Slots Evolved . | . . . Power . | . . . Propulsion . | . . . Utility . | . . . Weapon . | . . . Parts Attached 20 | 5 12 3 Power 3 | . 3 . Engine 3 | . 3 . Core . | . . . Reactor . | . . . Propulsion 6 | 2 2 2 Treads . | . . . Leg 2 | 2 . . Wheel 4 | . 2 2 Hover . | . . . Flight . | . . . Utility 3 | 1 2 . Device . | . . . Storage 2 | 1 1 . Processor 1 | . 1 . Hackware . | . . . Protection . | . . . Artifact . | . . . Weapon 8 | 2 5 1 Energy Gun 3 | 1 2 . Energy Cannon . | . . . Ballistic Gun 2 | 1 1 . Ballistic Cannon . | . . . Launcher 2 | . 1 1 Special Weapon . | . . . Impact Weapon 1 | . 1 . Slashing Weapon . | . . . Piercing Weapon . | . . . Special Melee Weapon . | . . . Unidentified Prototypes 1 | . 1 . Parts Lost 6 | . 2 4 Power 1 | . . 1 Propulsion 2 | . . 2 Utility . | . . . Weapon 3 | . 2 1 Highest Loss Streak 4 | . 1 4 To Critical Strikes . | . . . Average Backups 11 | 5 9 14 Power 1 | 1 1 1 Propulsion 4 | 2 4 5 Utility . | . . 1 Weapon 3 | 1 2 6 Tool/Special . | . . . Unused Backups 12 | . 2 10 Power 1 | . . 1 Propulsion 6 | . 2 4 Utility 1 | . . 1 Weapon 3 | . . 3 Tool/Special 1 | . . 1 Average Slot Usage (%) 94 | . 94 95 Engine 12 | . 12 11 Leg 11 | . 19 . Wheel 16 | . 8 27 Storage 14 | . 14 14 Processor 12 | . 10 14 Energy Gun 14 | . 7 25 Ballistic Gun 10 | . 17 . Peak Build Rating 12 | 5 12 12 Average Rating 8 | 3 7 11 On Entrance 5 | . 5 12 Avg Prop Armor Cover (%) . | . . . Naked Turns . | . . . Heaviest Build 31 | 9 31 31 Greatest Support 32 | 20 26 32 Greatest Overweight (x) 10 | 1 1 10 Average Overweight (x) . | . . . Largest Inventory Capacity 15 | 8 15 15 Average Capacity 12 | 7 10 15 Most Carried 15 | 8 15 15 Average Carried 11 | 5 9 14 Final Capacity 15 | 8 15 15 Final Carried 15 | 7 15 12 Class Distribution -------------------- 100% | Mutant Dominant Class ---------------- Mutant | -10/Materials Mutant | -10/Subcaves Resources | -11 -10 -10 ----------- Run | Yrd Mat Sub Matter Collected 405 | 201 204 . Remotely . | . . . Salvage Created 503 | . 469 34 Parts 36 | . 32 4 Haulers Intercepted 2 | . 2 . Recyclers Shooed . | . . . Parts Field Recycled . | . . . Retrieved Matter . | . . . Parts Self-Destructed 5 | . . 5 Prevented . | . . . Parts Restored . | . . . Kills | -11 -10 -10 ------- Run | Yrd Mat Sub Combat Hostiles Destroyed 19 | . 16 3 Guns 16 | . 14 2 AOE 3 | . 2 1 Classes Destroyed 4 | . 4 . Hauler 2 | . 2 . Watcher 1 | . 1 . Swarmer 12 | . 9 3 Grunt 7 | . 7 . Best Kill Streak 3 | . 3 3 Combat Bots Only 3 | . 3 3 Max Kills in Single Turn 2 | . 2 1 Gunslinging 1 | . 1 . Exploded 1 | . 1 1 Melee . | . . . Uniques/NPCs Destroyed . | . . . Combat | -11 -10 -10 -------- Run | Yrd Mat Sub Hostile Shots Fired 169 | . 90 79 Missed 55 | . 30 25 Hits 114 | . 60 54 Projectile 114 | . 60 54 Damage Taken 1070 | . 644 426 Core 272 | . 115 157 Absorbed by Shields . | . . . Core Remaining (%) 100 | 100 . . Volleys Fired 77 | . 71 6 Largest 2 | . 2 2 Hottest 101 | . 101 101 Shots Fired 123 | . 115 8 Gun 119 | . 111 8 Cannon . | . . . Launcher 4 | . 4 . Special . | . . . Kinetic 85 | . 85 . Thermal 19 | . 13 6 Explosive 4 | . 4 . Electromagnetic 15 | . 13 2 Robot Hit Streak 9 | . 9 4 Robot Miss Streak 2 | . 2 2 Penetration Max . | . . . Secondary Targets 3 | . 2 1 Max Gunslinging Chain 1 | . 1 1 Shots Hit Robots 77 | . 71 6 Core Hits 35 | . 32 3 Critical Kills . | . . . Critical Parts Destroyed . | . . . Critical Strikes . | . . . Melee Attacks . | . . . Impact . | . . . Slashing . | . . . Piercing . | . . . Sneak Attacks . | . . . Combat Hostiles . | . . . Follow-up Attacks . | . . . Damage Inflicted 1162 | . 1027 135 Guns 848 | . 780 68 Cannons . | . . . Explosions 295 | . 228 67 Melee . | . . . Ramming 19 | . 19 . Kinetic 531 | . 531 . Thermal 294 | . 175 119 Explosive 188 | . 188 . Electromagnetic 130 | . 114 16 Impact . | . . . Slashing . | . . . Piercing . | . . . Highest Corruption . | . . . Average Corruption . | . . . Corruption Purged . | . . . Corruption Blocked . | . . . Overload Shots . | . . . Overflow Damage 20 | . . 20 Projectiles . | . . . Explosions 20 | . . 20 Melee . | . . . Knockbacks . | . . . Impact . | . . . Kinetic . | . . . Secondary . | . . . Self-Inflicted Damage 46 | . 46 . Shots 1 | . 1 . Rammed 1 | . 1 . Targets Rammed 1 | . 1 . Kicked . | . . . Crushed . | . . . Highest Temperature 103 | . 103 5 Average Temperature 33 | . 34 5 Received Heat Transfer 357 | . 138 219 Siege Activations . | . . . Martial Activations . | . . . Shielding Activations . | . . . Robots Disrupted . | . . . Combat Hostiles . | . . . Robots Corrupted . | . . . Combat Hostiles . | . . . Parts Fried . | . . . Impact Corruptions . | . . . Robots Melted . | . . . Combat Hostiles . | . . . Parts Melted . | . . . Heat Transferred 557 | . 346 211 Parts Sabotaged . | . . . Parts Stolen . | . . . Parts Stripped . | . . . Power Chain Reactions 2 | . 1 1 Alert | -11 -10 -10 ------- Run | Yrd Mat Sub Maximum Alert Level . | . . . Low Security (%) 100 | 100 100 . Level 1 . | . . . Level 2 . | . . . Level 3 . | . . . Level 4 . | . . . Level 5 . | . . . High Security . | . . . Max Security . | . . . Peak Influence 107 | . 107 . Initial . | . . . Average 42 | . 45 . Influence Increases 589 | . 424 165 Destroy 0b10 Robot/C 380 | . 320 60 Destroy 0b10 Robot/NC 15 | . 15 . Destroy Leader 66 | . 66 . Destroy Structure 23 | . 23 . Lose Combat Pursuer 105 | . . 105 Influence Decreases 589 | . 375 214 Entered New Map 25 | . . 25 Time Decay 524 | . 355 169 Lost Part 40 | . 20 20 Squads Dispatched 3 | . 3 . Investigation 1 | . 1 . Extermination . | . . . Reinforcement 2 | . 2 . Assault . | . . . Garrison . | . . . Intercept . | . . . Searches Triggered . | . . . Construction Impeded . | . . . Haulers Reinforced . | . . . Active Scanning Responses . | . . . Cargo Convoy Interrupts . | . . . Stealth | -11 -10 -10 --------- Run | Yrd Mat Sub Distress Signals 1 | . 1 . Communications Jammed . | . . . Distress Signals . | . . . Times Spotted 37 | . 26 11 Peak Tracking Total 6 | . 4 6 Tactical Retreats 3 | . . 3 Traps | -11 -10 -10 ------- Run | Yrd Mat Sub Traps Triggered 2 | . 2 . Indirectly . | . . . Trap Hack Attempts . | . . . Triggered . | . . . Disarmed . | . . . Reprogrammed . | . . . Reused . | . . . Traps Extracted . | . . . Installed . | . . . Triggered . | . . . Machines | -11 -10 -10 ---------- Run | Yrd Mat Sub Machines Disabled . | . . . Max in Single Turn . | . . . Machines Repaired . | . . . Machines Dismantled . | . . . Machines Sabotaged . | . . . Overloaded Fab Kills . | . . . Hacking | -11 -10 -10 --------- Run | Yrd Mat Sub Machines Accessed 2 | . 1 1 Terminals 1 | . 1 . Fabricators . | . . . Repair Stations . | . . . Recycling Units . | . . . Scanalyzers . | . . . Garrison Access . | . . . Total Hacks 6 | . 2 4 Successful 5 | . 1 4 Failed 1 | . 1 . Catastrophic . | . . . Database Lockouts . | . . . Manual 2 | . 2 . Terminals 2 | . 2 . Fabricators . | . . . Repair Stations . | . . . Recycling Units . | . . . Scanalyzers . | . . . Garrison Access . | . . . Terminal Hacks 4 | . . 4 Record 4 | . . 4 Fabricator Hacks . | . . . Repair Station Hacks . | . . . Recycling Unit Hacks . | . . . Scanalyzer . | . . . Garrison Access Hacks . | . . . Unauthorized Hacks 1 | . 1 . Terminals 1 | . 1 . Botnet 1 | . 1 . Fabricators . | . . . Repair Stations . | . . . Recycling Units . | . . . Scanalyzers . | . . . Garrison Access . | . . . Data Cores Recovered . | . . . Used . | . . . Hacking Detections . | . . . Full Trace Events . | . . . Feedback Events . | . . . Feedback Blocked . | . . . Robot Schematics Acquired . | . . . Robots Built . | . . . Authchips . | . . . Time . | . . . Total Robot Build Rating . | . . . Part Schematics Acquired . | . . . Parts Built . | . . . Authchips . | . . . Time . | . . . Total Part Build Rating . | . . . Part Studies Acquired . | . . . Parts Repaired . | . . . Time . | . . . Parts Recycled . | . . . Recycled Matter . | . . . Retrieved Matter . | . . . Retrieved Components . | . . . Parts Scanalyzed . | . . . Part Schematics Acquired . | . . . Parts Damaged . | . . . Bothacking | -11 -10 -10 ------------ Run | Yrd Mat Sub Used RIF Installer . | . . . Robots Hacked . | . . . Non-combat . | . . . Combat . | . . . Robot Hacks Applied . | . . . Relay Couplers Released . | . . . Fabnet Peak Effective % . | . . . Robots Rewired . | . . . Allies Hacked . | . . . Hacks Repelled . | . . . Allies | -11 -10 -10 -------- Run | Yrd Mat Sub Total Allies . | . . . Largest Group . | . . . Highest-Rated Group . | . . . Highest-Rated Ally . | . . . Total Orders . | . . . Ally Attacks . | . . . Total Damage . | . . . Kills . | . . . Allies Corrupted . | . . . Allies Melted . | . . . Intel | -11 -10 -10 ------- Run | Yrd Mat Sub Active Infowar (turns) . | . . . Robot Analysis Total . | . . . Derelict Logs Recovered 1 | . . 1 Drone Launches . | . . . Drone Recoveries . | . . . Exploration | -11 -10 -10 ------------- Run | Yrd Mat Sub Turns Passed 1615 | 58 957 600 Spaces Moved 1125 | 43 574 508 Core 18 | 17 . 1 Treads . | . . . Legs 364 | 26 338 . Wheels 743 | . 236 507 Hover . | . . . Flight . | . . . Fastest Speed 50 | 50 90 100 Average Speed 109 | 99 113 105 Slowest Speed 550 | 120 190 550 Overloaded Moves . | . . . Propulsion Burnouts . | . . . Robots Hopped . | . . . Potential Cave-ins . | . . . Cave-ins Triggered . | . . . Exploration Rate (%) 44 | 4 92 37 Regions Visited 2 Branch Regions 1 Pre-discovered Areas 1 | . . 1 Known Exits Taken . | . . . Unknown Exits Taken 2 | 1 1 . Scrap Searched . | . . . Spaces Dug . | . . . Terrain Destroyed 35 | . 32 3 Melee . | . . . Projectile . | . . . AOE 35 | . 32 3 Terrain Rammed . | . . . Walls Destroyed . | . . . Machines Disabled . | . . . Actions | -11 -10 -10 --------- Run | Yrd Mat Sub Total 1398 | 58 774 566 Wait 138 | . 89 49 Move 1123 | 42 573 508 Hop . | . . . Pick Up 30 | 11 19 . Fast Attach 1 | 1 . . Attach 13 | 4 6 3 Detach 1 | . 1 . Swap 6 | . 6 . Drop 8 | . 8 . Fire 77 | . 71 6 Melee . | . . . Ram 1 | . 1 . Kick . | . . . Crush . | . . . Escape Stasis . | . . . Rewire . | . . . Trap . | . . . Miscellaneous . | . . . Route ------- -11/Scrapyard -10/Materials (discovered 5 exits: [*Mat x2] / [*Min x2] / *Sub) -10/Subcaves (discovered 1 exit: [*Rec]) History --------- Turn | Location | Event 18 | -11/Scrapyard | Discovered new exit (range 16) 59 | -11/Scrapyard | Entered Materials 232 | -10/Materials | Discovered new exit (range 7) 315 | -10/Materials | Build established: Mutant 324 | -10/Materials | Discovered new exit (range 14) 734 | -10/Materials | Discovered new exit (range 16) 844 | -10/Materials | Discovered new exit (range 8) 1011 | -10/Materials | Discovered new exit (range 6) 1016 | -10/Materials | Entered Subcaves 1017 | -10/Subcaves | Approached by a straggling Scientist 1023 | -10/Subcaves | Shifting Twisted Machinery released Sub. Beam Cannon 1103 | -10/Subcaves | Visited Clippyterm 1106 | -10/Subcaves | Learned Factory stockpile data 1263 | -10/Subcaves | Core integrity fell below 50% 1517 | -10/Subcaves | Core integrity fell below 20% 1520 | -10/Subcaves | Discovered new exit (range 16) 1540 | -10/Subcaves | Learned location of Zion (-7) 1540 | -10/Subcaves | Met a Zionite searching for "candidates" 1540 | -10/Subcaves | Learned 8 Materials zone layouts 1549 | -10/Subcaves | Lost 4 parts (1p2n1w) 1610 | -10/Subcaves | Ambushed by Subdwellers from Twisted Machinery 1616 | -10/Subcaves | Destroyed by U8-KAP(R) with Subdweller Machine Gun Last Messages --------------- 01507_ Wheel destroyed. 01511_ Com. Wheel destroyed. 01513_ S-10 Pest destroyed. 01515_ EM Shotgun destroyed. 01518_ Ion Engine destroyed. 01520_ EXIT=FOUND 01522_ Subatomizers dissect the Flight Unit. 01523_ Flight Unit fries itself beyond repair. Q9-2DK(c): "I think it's somewhere east of here" 01538_ 66-WTS(z): "She is not going to be happy we haven't found any suitable candidates yet." 01540_ 66-WTS(z): "Hey you! It's really dangerous down here, I feel that you could die at any moment. For your health and safety might I suggest a trip to Zion?" World map updated: -7/Zion. 01540_ Acquired derelict log, extracted data. Data stored: Materials zone layouts (x8). 01610_ QS-X7Y(R) emerges from the Twisted Machinery. Map ----- +----------------------------------------------------+ | ??#######???########### #?????????????????????? | | ??????????????????????# ##?????????????????????? | | ????????????????#??##### #??????????????????????? | | ??????????????#" ##" ##??????????????????????? | | ????????????????# #####???????????????????? | | ????????????????##"#" # #???????????????????? | | ??????????????????## # #???????????????????? | | ??????????????????# ##??????????????????? | | ??????????????????# ##?????????????????? | | ??????????????????# #?????????????????? | | ??????????????????# #### #????????????????? | | ??????????????????## ##???# #??????????????? | | ???????????????????# #????? #?????????????? | | ??????????????????## #?????? #????????????? | | ??????????????????# ##??????? #????????????? | | ?????????????????## ##????????? ##????????????? | | ????????????????## #??????????###?????????????? | | ????????????????# ##?????????????????????????? | | ????????????????### ##????????????????????????? | | ????????# ????#??# ##???????????????????????? | | ?????????# ## ## #???????????????????????? | | ??????????# ##??????????????????????? | | ??????????# #??????????????????????? | | ??????????# ### ### #####??????????????????? | | ??????????????####??# ## #??????????????????? | | ????????????????????# @ "##?????????????????? | | ????????????????????# ""#?????????????????? | | ????????????????????# %### " #?????????????????? | | ????????????????????# # # ##?????????????????? | | ????????????????????# RR ???????????????? | | ???????????????????# "# "#?????????????? | | ???????????????????######## " #""""#?????????????? | | ??????????????????????????#####""" #?????????????? | | ????????????????????????????????"" #?????????????? | | ?????????????????????????????????????????????????? | | ?????????????????????????????????????????????????? | | ?????????????????????????????????????????????????? | | ?????????????????????????????????????????????????? | | ?????????????????????????????????????????????????? | | ?????????????????????????????????????????????????? | | ?????????????????????????????????????????????????? | | ?????????????????????????????????????????????????? | | ?????????????????????????????????????????????????? | | ?????????????????????????????????????????????????? | | ?????????????????????????????????????????????????? | | ?????????????????????????????????????????????????? | | ?????????????????????????????????????????????????? | | ?????????????????????????????????????????????????? | | ?????????????????????????????????????????????????? | | ?????????????????????????????????????????????????? | +----------------------------------------------------+ Best States ------------- Heat Dissipation 25 Energy Generation 10 Energy Capacity 250 Matter Stores 251 Matter Capacity 300 Sight Range 16 Terrain Scan Density 10 Evasion (%) 55 Targeting Accuracy 5 Item Schematics ----------------- None Robot Schematics ------------------ None Fabricated ------------ Nothing Repaired ---------- Nothing Studied --------- None Alien Tech Used ----------------- None Achievements -------------- None Challenges ------------ None Game ------ Seed StructuralHoverAmplifier Manual? 0 Play Time 00:14:52 Cumulative 271.7 hours Start 2025.10.25 @ 14:32:24 End 2025.10.25 @ 14:48:15 Sessions 1 Manual Loads 0 Difficulty Rogue Special Mode None Game No. 428 Rogue 428 Adventurer 0 Explorer 0 Win Type - Total 1 Types 1/0/0/0/0/0/0/0/0/0 Lore% 64 Gallery% 62 Achievement% 25 Wizard Run 0 Options --------- Layout 1 ASCII 0 Keyboard 0 Movement Mouse Keybinds 0 Fullscreen 2 Font 24/Smallcaps Map View 50x35 Zoom Use 0% Tactical HUD 1 Map Filters NONE Filters NONE Steam 1 RUN: 1ac5e4a6-2136-47a4-ad03-07c4734e1e41